bitfinex/quotes_BTCUSD_20250711
["timestamp","ask_amount","ask_price","bid_price","bid_amount"]
[1752261452104,0.03632,117800.0,117790.0,0.16095135]
[1752261452514,0.00205,117800.0,117790.0,0.41504377]
[1752261452724,0.00205,117800.0,117790.0,0.41292135]
[1752261452953,0.0021294,117810.0,117790.0,0.41599135]
[1752261453162,0.00317,117810.0,117790.0,0.41599135]
[1752261453538,0.0052994,117810.0,117790.0,0.41599135]
[1752261453945,0.0052994,117810.0,117790.0,0.41699135]
[1752261454150,0.00317,117810.0,117790.0,0.41699135]
[1752261454518,0.00317,117810.0,117790.0,0.41599135]
[1752261456305,0.00317,117810.0,117790.0,0.41699135]
[1752261459041,0.00317,117810.0,117790.0,0.85005516]
[1752261459294,0.0368994,117820.0,117790.0,0.85005516]
[1752261459495,0.03477,117820.0,117800.0,0.08542993]
[1752261459707,0.03477,117820.0,117810.0,0.19024]
[1752261459912,0.01784534,117840.0,117810.0,0.96377374]
[1752261460494,0.00284534,117840.0,117810.0,0.53070993]
[1752261460716,0.015,117830.0,117820.0,0.19024]
[1752261460931,0.01705,117830.0,117820.0,0.27566993]
[1752261461995,0.02022,117830.0,117820.0,0.27566993]
[1752261463981,0.03632,117830.0,117820.0,0.27566993]
[1752261466002,0.02022,117830.0,117820.0,0.27566993]
[1752261468636,0.79971288,117840.0,117820.0,0.28063993]
[1752261468836,0.35978,117840.0,117830.0,0.08542993]
[1752261469082,0.36186,117840.0,117830.0,0.08542993]
[1752261470502,0.02118,117850.0,117830.0,0.53351281]
[1752261470740,0.36132896,117850.0,117840.0,0.1896]
[1752261470859,0.36340896,117850.0,117840.0,0.27502993]
[1752261471269,0.80652184,117850.0,117840.0,0.27502993]
[1752261474519,0.36340896,117850.0,117840.0,0.27502993]
[1752261474732,0.80652184,117850.0,117840.0,0.27502993]
[1752261475320,0.78734184,117850.0,117840.0,0.27698993]
[1752261475496,0.34422896,117850.0,117840.0,0.27698993]
[1752261475904,0.79052184,117850.0,117840.0,0.27502993]
[1752261478185,0.82092184,117850.0,117840.0,0.27446993]
[1752261478385,0.82092184,117850.0,117840.0,0.32446993]
[1752261478596,0.83546269,117850.0,117840.0,0.32446993]
[1752261480157,0.39234981,117850.0,117840.0,0.32446993]
[1752261480339,0.83546269,117850.0,117840.0,0.32446993]
[1752261483180,1.27857557,117850.0,117840.0,0.23904]
[1752261483390,1.27857557,117850.0,117840.0,0.05]
[1752261483598,1.32857557,117850.0,117840.0,0.03597516]
[1752261483769,1.4140055,117850.0,117840.0,0.03597516]
[1752261484027,0.0316,117830.0,117820.0,0.1886]
[1752261484237,0.81679288,117830.0,117820.0,0.1886]
[1752261484480,0.83451373,117830.0,117820.0,0.1886]
[1752261484909,0.82449419,117830.0,117820.0,0.1886]
[1752261485332,1.22449419,117830.0,117820.0,0.1886]
[1752261488229,0.79140085,117830.0,117820.0,0.1886]
[1752261488434,1.22449419,117830.0,117820.0,0.1886]
[1752261490818,1.22449419,117830.0,117820.0,0.1986]
[1752261499844,0.79140085,117830.0,117820.0,0.1986]
[1752261500095,1.22449419,117830.0,117820.0,0.1986]
[1752261501084,1.22449419,117830.0,117820.0,0.2486]
[1752261505116,1.2347819,117830.0,117820.0,0.2486]
[1752261509339,1.2182819,117830.0,117820.0,0.2486]
[1752261510976,1.2346819,117830.0,117820.0,0.2486]
[1752261512834,1.2031819,117830.0,117820.0,0.2486]
[1752261514679,0.025448,117840.0,117820.0,0.2814]
[1752261514880,0.44338105,117830.0,117820.0,0.28445]
[1752261515088,0.34,117830.0,117820.0,0.28445]
[1752261515290,0.78338105,117830.0,117820.0,0.28445]
[1752261515492,0.7979219,117830.0,117820.0,0.28445]
[1752261520759,0.8030519,117830.0,117820.0,0.2814]
[1752261521056,0.8030519,117830.0,117820.0,0.2637]
[1752261521276,0.8196519,117830.0,117820.0,0.2486]
[1752261521499,0.8360519,117830.0,117820.0,0.2486]
[1752261521910,0.8196519,117830.0,117820.0,0.2486]
[1752261522942,0.8351519,117830.0,117820.0,0.2486]
[1752261524500,1.2351519,117830.0,117820.0,0.2486]
[1752261525361,1.2196519,117830.0,117820.0,0.2486]
[1752261525580,1.2030519,117830.0,117820.0,0.2486]
[1752261526422,0.34,117830.0,117820.0,0.2853]
[1752261526597,0.78338105,117830.0,117820.0,0.37072993]
[1752261527068,0.44338105,117840.0,117830.0,0.0316]
[1752261527256,0.44338105,117840.0,117830.0,0.03366]
[1752261527397,0.44338105,117840.0,117830.0,0.03676]
[1752261527618,0.4579219,117840.0,117830.0,0.03676]
[1752261528269,0.00512896,117850.0,117830.0,0.03676]
[1752261528470,0.00512896,117850.0,117840.0,0.1896]
[1752261528681,0.02172981,117850.0,117840.0,0.1896]
[1752261529846,0.80711086,117850.0,117840.0,0.1896]
[1752261531586,0.01454085,117840.0,117830.0,0.03449594]
[1752261531786,0.4579219,117840.0,117830.0,0.03655594]
[1752261532740,0.4599219,117840.0,117830.0,0.03655594]
[1752261532944,0.4599219,117840.0,117830.0,0.22615594]
[1752261533696,0.4649619,117840.0,117830.0,0.22099594]
[1752261533917,1.24834295,117840.0,117830.0,0.1896]
[1752261534124,0.36158085,117840.0,117830.0,0.1896]
[1752261534330,1.24834295,117840.0,117830.0,0.1896]
[1752261534507,0.8049619,117840.0,117830.0,0.1896]
[1752261535319,0.36158085,117840.0,117830.0,0.1896]
[1752261535532,0.8049619,117840.0,117830.0,0.1896]
[1752261539930,1.24834295,117840.0,117830.0,0.1896]
[1752261540718,0.8049619,117840.0,117830.0,0.1896]
[1752261541162,0.36158085,117840.0,117830.0,0.1896]
[1752261541312,0.8049619,117840.0,117830.0,0.1896]
[1752261541513,0.36158085,117840.0,117830.0,0.1896]
[1752261541719,0.8049619,117840.0,117830.0,0.1896]
[1752261542842,0.36158085,117840.0,117830.0,0.1896]
[1752261543102,0.8049619,117840.0,117830.0,0.1896]
[1752261547567,0.36158085,117840.0,117830.0,0.1896]
[1752261547759,0.8049619,117840.0,117830.0,0.1896]
[1752261548407,0.36158085,117840.0,117830.0,0.1896]
[1752261548607,0.8049619,117840.0,117830.0,0.1896]
[1752261548817,1.29678683,117840.0,117830.0,0.1896]
[1752261549098,1.28044295,117840.0,117830.0,0.1896]
[1752261552987,1.26384295,117840.0,117830.0,0.1896]
[1752261553191,0.0154,117830.0,117820.0,0.24868]
[1752261553395,0.57919183,117830.0,117820.0,0.24868]
[1752261553756,0.69896283,117830.0,117820.0,0.24868]
[1752261556555,0.66816283,117830.0,117820.0,0.24868]
[1752261556754,0.66812283,117830.0,117820.0,0.24868]
[1752261557493,0.66789795,117830.0,117820.0,0.24868]
[1752261558231,0.68439795,117830.0,117820.0,0.06]
[1752261558442,0.46373702,117830.0,117820.0,0.15424]
[1752261559494,0.02035597,117830.0,117820.0,0.15424]
[1752261559735,0.46373702,117830.0,117820.0,0.15424]
[1752261560792,0.46075702,117830.0,117820.0,0.15635]
[1752261560959,0.46397702,117830.0,117820.0,0.18634]
[1752261561148,0.46397702,117830.0,117820.0,0.17064]
[1752261561354,0.46397702,117830.0,117820.0,0.15424]
[1752261562198,0.46397702,117830.0,117820.0,0.18915]
[1752261562199,0.46075702,117830.0,117820.0,0.18915]
[1752261562620,0.46397702,117830.0,117820.0,0.18915]
[1752261564529,0.46397702,117830.0,117820.0,0.17084]
[1752261564745,0.46397702,117830.0,117820.0,0.19269]
[1752261564746,0.001,117830.0,117820.0,0.19269]
[1752261564950,0.001,117830.0,117820.0,0.27811993]
[1752261565736,0.01668981,117850.0,117820.0,0.27811993]
[1752261565737,0.00214896,117850.0,117820.0,0.89928725]
[1752261565941,0.00214896,117850.0,117840.0,0.47448105]
[1752261566137,0.00214896,117850.0,117840.0,0.30663993]
[1752261566336,0.00214896,117850.0,117840.0,0.30987993]
[1752261566547,0.44553001,117850.0,117840.0,0.30987993]
[1752261566863,0.00214896,117850.0,117840.0,0.30987993]
[1752261567764,0.44553001,117850.0,117840.0,0.30983993]
[1752261568268,0.00214896,117850.0,117840.0,0.30983993]
[1752261569615,0.44553001,117850.0,117840.0,0.30983993]
[1752261573405,0.00214896,117850.0,117840.0,0.30983993]
[1752261574182,0.00214896,117850.0,117840.0,0.35983993]
[1752261574412,0.44553001,117850.0,117840.0,0.35983993]
[1752261576931,0.00214896,117850.0,117840.0,0.35983993]
[1752261577681,0.44553001,117850.0,117840.0,0.35983993]
[1752261579974,0.00214896,117850.0,117840.0,0.35983993]
[1752261580193,0.44553001,117850.0,117840.0,0.35983993]
[1752261581212,0.00214896,117850.0,117840.0,0.35983993]
[1752261582990,0.44553001,117850.0,117840.0,0.35983993]
[1752261584521,0.00214896,117850.0,117840.0,0.35983993]
[1752261588079,0.00214896,117850.0,117840.0,0.80322098]
[1752261588506,0.00214896,117850.0,117840.0,1.05322098]
[1752261589306,0.00214896,117850.0,117840.0,1.66632368]
[1752261589512,0.002,117870.0,117850.0,0.0315]
[1752261589722,0.00204963,117870.0,117860.0,0.75050098]
[1752261589947,0.00204963,117870.0,117860.0,0.31035993]
[1752261596956,0.00204963,117870.0,117860.0,0.45271993]
[1752261602229,0.44543068,117870.0,117860.0,0.45207993]
[1752261602439,0.00204963,117870.0,117860.0,0.45207993]
[1752261604679,0.00204963,117870.0,117860.0,0.89546098]
[1752261605511,0.00204963,117870.0,117860.0,0.45207993]
[1752261606309,0.00204963,117870.0,117860.0,0.89546098]
[1752261608070,0.00204963,117870.0,117860.0,0.45207993]
[1752261608839,0.00527,117890.0,117870.0,0.0316]
[1752261609097,0.00531963,117890.0,117880.0,0.27226993]
[1752261609270,0.00731963,117890.0,117880.0,0.27226993]
[1752261611234,0.45070068,117890.0,117880.0,0.27226993]
[1752261611808,0.45170068,117890.0,117880.0,0.27226993]
[1752261613834,0.00831963,117890.0,117880.0,0.27226993]
[1752261614184,0.45170068,117890.0,117880.0,0.27226993]
[1752261616460,0.4501962,117890.0,117880.0,0.27226993]
[1752261617348,0.4501362,117890.0,117880.0,0.27226993]
[1752261618221,0.49487705,117890.0,117880.0,0.18684]
[1752261618466,0.49464808,117890.0,117880.0,0.18684]
[1752261619513,0.05126703,117890.0,117880.0,0.18684]
[1752261619733,0.49464808,117890.0,117880.0,0.18684]
[1752261619946,0.05126703,117890.0,117880.0,0.18684]
[1752261620152,0.01454085,117880.0,117860.0,0.04564813]
[1752261620356,0.01454085,117880.0,117860.0,0.13400806]
[1752261620564,0.01777085,117880.0,117860.0,0.1449417]
[1752261620768,0.01777085,117880.0,117860.0,0.15819027]
[1752261620994,0.4611519,117880.0,117860.0,0.15819027]
[1752261621386,0.01777085,117880.0,117870.0,0.32904]
[1752261621625,0.4632519,117880.0,117870.0,0.32904]
[1752261623282,0.03497085,117880.0,117870.0,0.32904]
[1752261623464,0.4783519,117880.0,117870.0,0.32904]
[1752261623736,0.03497085,117880.0,117870.0,0.32904]
[1752261623924,0.4783519,117880.0,117870.0,0.32904]
[1752261624963,0.03497085,117880.0,117870.0,0.32904]
[1752261625137,0.4783519,117880.0,117870.0,0.32904]
[1752261625735,0.4632519,117880.0,117870.0,0.32904]
[1752261625936,0.4632519,117880.0,117870.0,0.34454]
[1752261626185,0.4632519,117880.0,117870.0,0.32904]
[1752261627378,0.44548105,117880.0,117870.0,0.41937993]
[1752261627597,0.44548105,117880.0,117870.0,0.45077993]
[1752261628841,0.44338105,117880.0,117870.0,0.45077993]
[1752261630650,0.44548105,117880.0,117870.0,0.45077993]
[1752261631797,0.43701003,117880.0,117870.0,0.45077993]
[1752261632176,0.0021,117880.0,117870.0,0.45077993]
[1752261632381,0.44548105,117880.0,117870.0,0.45077993]
[1752261634084,0.44548105,117880.0,117870.0,0.44784993]
[1752261634393,0.0021,117880.0,117870.0,0.43194993]
[1752261634571,0.44871105,117880.0,117870.0,0.43194993]
[1752261635052,0.00533,117880.0,117870.0,0.43194993]
[1752261635274,0.0021,117880.0,117870.0,0.43194993]
[1752261635450,0.44548105,117880.0,117870.0,0.43194993]
[1752261636154,0.44548105,117880.0,117870.0,0.48194993]
[1752261636389,0.44548105,117880.0,117870.0,0.49784993]
[1752261636509,0.44548105,117880.0,117870.0,0.50077993]
[1752261639029,0.00354618,117890.0,117870.0,0.50077993]
[1752261639433,0.44548105,117880.0,117870.0,0.50077993]
[1752261639637,0.0021,117880.0,117870.0,0.50077993]
[1752261639841,0.44548105,117880.0,117870.0,0.50077993]
[1752261639962,0.44548105,117880.0,117870.0,0.49784993]
[1752261641991,0.0021,117880.0,117870.0,0.49784993]
[1752261642236,0.44548105,117880.0,117870.0,0.49784993]
[1752261643987,0.44871105,117880.0,117870.0,0.49784993]
[1752261645997,0.44871105,117880.0,117870.0,0.47996993]
[1752261646228,0.44871105,117880.0,117870.0,0.37904]
[1752261646615,0.44871105,117880.0,117870.0,0.23672]
[1752261646828,0.66962196,117880.0,117870.0,0.23672]
[1752261648969,0.66962196,117880.0,117870.0,0.27077]
[1752261650318,0.66962196,117880.0,117870.0,0.37077]
[1752261655041,0.66962196,117880.0,117870.0,0.35252]
[1752261657402,0.66962196,117880.0,117870.0,0.37107]
[1752261658416,0.66962196,117880.0,117870.0,0.36902]
[1752261658909,0.66962196,117880.0,117870.0,0.35252]
[1752261659422,0.00533,117880.0,117870.0,0.35252]
[1752261659645,0.66962196,117880.0,117870.0,0.35252]
[1752261660338,0.33747598,117880.0,117870.0,0.37017]
[1752261661199,0.33747598,117880.0,117870.0,0.35252]
[1752261661990,0.33747598,117880.0,117870.0,0.36957]
[1752261662216,0.00031618,117890.0,117870.0,0.78714591]
[1752261662365,0.00031618,117890.0,117880.0,0.03333]
[1752261662366,0.33246216,117890.0,117880.0,0.03333]
[1752261662577,0.33246216,117890.0,117880.0,0.03538]
[1752261662997,0.00031618,117890.0,117880.0,0.03538]
[1752261663192,0.4430134,117890.0,117880.0,0.03538]
[1752261663554,0.00031618,117890.0,117880.0,0.03538]
[1752261663768,0.00031618,117890.0,117880.0,0.12080993]
[1752261664201,0.4430134,117890.0,117880.0,0.12080993]
[1752261665836,0.4440134,117890.0,117880.0,0.12080993]
[1752261666290,0.4430134,117890.0,117880.0,0.12080993]
[1752261667165,0.4480734,117890.0,117880.0,0.11757993]
[1752261671969,0.4480734,117890.0,117880.0,0.1866]
[1752261671970,0.47881425,117890.0,117880.0,0.1866]
[1752261672084,0.49381425,117890.0,117880.0,0.1866]
[1752261675565,0.49381425,117890.0,117880.0,0.18648]
[1752261675764,0.05111703,117890.0,117880.0,0.18648]
[1752261675991,0.49381425,117890.0,117880.0,0.18648]
[1752261677429,0.46261425,117890.0,117880.0,0.18648]
[1752261677635,0.00031618,117890.0,117880.0,0.30838993]
[1752261679341,0.00031618,117890.0,117880.0,0.75108715]
[1752261679921,0.00031618,117890.0,117880.0,0.30938993]
[1752261680098,0.00031618,117890.0,117880.0,0.75208715]
[1752261680478,0.00031618,117890.0,117880.0,0.30938993]
[1752261680677,0.00031618,117890.0,117880.0,0.75208715]
[1752261681220,0.00031618,117890.0,117880.0,0.30938993]
[1752261681438,0.00031618,117890.0,117880.0,0.75208715]
[1752261685121,0.058134,117900.0,117880.0,0.75208715]
[1752261685336,0.058134,117900.0,117890.0,0.11875993]
[1752261685545,0.058134,117900.0,117890.0,0.12080993]
[1752261686553,0.058134,117900.0,117890.0,0.14627402]
[1752261687648,0.058134,117900.0,117890.0,0.28859402]
[1752261689068,0.058134,117900.0,117890.0,0.28959402]
[1752261694195,0.50083122,117900.0,117890.0,0.28959402]
[1752261694802,0.058134,117900.0,117890.0,0.28959402]
[1752261697755,0.50083122,117900.0,117890.0,0.28959402]
[1752261698873,0.50083122,117900.0,117890.0,0.33959402]
[1752261699395,0.50083122,117900.0,117890.0,0.43959402]
[1752261700224,0.058134,117900.0,117890.0,0.43959402]
[1752261700386,0.50083122,117900.0,117890.0,0.43959402]
[1752261702077,0.50589122,117900.0,117890.0,0.42146402]
[1752261702487,0.50589122,117900.0,117890.0,0.39599993]
[1752261703323,0.72719994,117900.0,117890.0,0.39599993]
[1752261704963,0.50585268,117900.0,117890.0,0.39599993]
[1752261705175,0.50275268,117900.0,117890.0,0.41199993]
[1752261705593,0.060094,117900.0,117890.0,0.41199993]
[1752261706007,0.50275268,117900.0,117890.0,0.41199993]
[1752261706341,0.50275268,117900.0,117890.0,0.41499993]
[1752261707034,0.060094,117900.0,117890.0,0.41499993]
[1752261709979,0.50275268,117900.0,117890.0,0.41499993]
[1752261711148,0.060094,117900.0,117890.0,0.41499993]
[1752261711345,0.50275268,117900.0,117890.0,0.41499993]
[1752261711754,0.060094,117900.0,117890.0,0.41499993]
[1752261713010,0.50275268,117900.0,117890.0,0.41499993]
[1752261713836,0.060094,117900.0,117890.0,0.41499993]
[1752261713978,0.50275268,117900.0,117890.0,0.41499993]
[1752261714397,0.50081302,117900.0,117890.0,0.41499993]
[1752261714800,0.50081302,117900.0,117890.0,0.44083629]
[1752261715443,0.05619434,117900.0,117890.0,0.44083629]
[1752261715618,0.04772451,117900.0,117890.0,0.44083629]
[1752261721074,0.04973451,117900.0,117890.0,0.37874993]
[1752261721343,0.88147404,117900.0,117890.0,0.33692]
[1752261723112,0.78147404,117900.0,117890.0,0.23692]
[1752261723370,0.78348404,117900.0,117890.0,0.18692]
[1752261724666,0.78348404,117900.0,117890.0,0.18592]
[1752261724998,0.79802489,117900.0,117890.0,0.18592]
[1752261725204,0.35664621,117900.0,117890.0,0.18592]
[1752261725422,0.79930489,117900.0,117890.0,0.18592]
[1752261726044,0.82470489,117900.0,117890.0,0.18592]
[1752261730651,0.38204621,117900.0,117890.0,0.18592]
[1752261730866,0.82470489,117900.0,117890.0,0.18592]
[1752261731270,0.01655085,117900.0,117890.0,0.18592]
[1752261731429,0.45920953,117900.0,117890.0,0.20222]
[1752261732040,0.79920953,117900.0,117890.0,0.20222]
[1752261732478,0.78466868,117900.0,117890.0,0.21762]
[1752261732977,0.78466868,117900.0,117890.0,0.20222]
[1752261733158,0.78466868,117900.0,117890.0,0.18592]
[1752261733498,0.78466868,117900.0,117890.0,0.20192]
[1752261734933,0.79920953,117900.0,117890.0,0.18592]
[1752261735135,0.78466868,117900.0,117890.0,0.18592]
[1752261735508,0.78466868,117900.0,117890.0,0.21842]
[1752261736118,0.34201,117900.0,117890.0,0.21842]
[1752261736397,0.78466868,117900.0,117890.0,0.21842]
[1752261736936,0.78466868,117900.0,117890.0,0.20222]
[1752261737175,0.78466868,117900.0,117890.0,0.18592]
[1752261738180,0.78466868,117900.0,117890.0,0.20142]
[1752261741183,0.34201,117900.0,117890.0,0.20142]
[1752261741513,0.78466868,117900.0,117890.0,0.20142]
[1752261741716,0.78466868,117900.0,117890.0,0.21782]
[1752261744958,1.00613994,117900.0,117890.0,0.21782]
[1752261747504,1.00412994,117900.0,117890.0,0.22291]
[1752261747948,1.00613994,117900.0,117890.0,0.22291]
[1752261748153,1.00613994,117900.0,117890.0,0.22078]
[1752261748585,1.00613994,117900.0,117890.0,0.21782]
[1752261751174,0.34201,117900.0,117890.0,0.21782]
[1752261751378,1.00613994,117900.0,117890.0,0.21782]
[1752261751934,0.34201,117900.0,117890.0,0.21782]
[1752261752125,1.00613994,117900.0,117890.0,0.21782]
[1752261757021,1.00613994,117900.0,117890.0,0.22291]
[1752261759426,1.00613994,117900.0,117890.0,0.22078]
[1752261762504,1.33820491,117900.0,117890.0,0.22078]
[1752261763055,1.00613994,117900.0,117890.0,0.22078]
[1752261764550,1.00613994,117900.0,117890.0,0.21782]
[1752261765737,1.00613994,117900.0,117890.0,0.22078]
[1752261773284,1.33820491,117900.0,117890.0,0.20142]
[1752261773420,1.35274576,117900.0,117890.0,0.20142]
[1752261773849,0.35655085,117900.0,117890.0,0.20142]
[1752261774044,1.02068079,117900.0,117890.0,0.20142]
[1752261774255,1.35274576,117900.0,117890.0,0.20142]
[1752261775121,1.02068079,117900.0,117890.0,0.21692]
[1752261782546,0.35655085,117900.0,117890.0,0.21692]
[1752261782752,1.02068079,117900.0,117890.0,0.2221]
[1752261782967,0.01454085,117900.0,117890.0,0.2221]
[1752261783170,0.37709219,117910.0,117900.0,0.0309]
[1752261783373,0.70915716,117910.0,117900.0,0.03608]
[1752261784343,0.71015716,117910.0,117900.0,0.03608]
[1752261784783,0.37809219,117910.0,117900.0,0.03608]
[1752261785051,0.35561631,117910.0,117900.0,0.03608]
[1752261790641,0.34237115,117910.0,117900.0,0.03608]
[1752261791073,0.67443612,117910.0,117900.0,0.03608]
[1752261791213,0.34237115,117910.0,117900.0,0.03608]
[1752261792361,0.34237115,117910.0,117900.0,0.12150993]
[1752261797036,0.67443612,117910.0,117900.0,0.12150993]
[1752261801137,0.01030618,117910.0,117900.0,0.12150993]
[1752261801307,0.34237115,117910.0,117900.0,0.12150993]
[1752261804259,0.67443612,117910.0,117900.0,0.12150993]
[1752261808000,0.01030618,117910.0,117900.0,0.12150993]
[1752261808241,0.34237115,117910.0,117900.0,0.14743178]
[1752261808552,0.67443612,117910.0,117900.0,0.14743178]
[1752261809895,0.66428239,117910.0,117900.0,0.14743178]
[1752261810097,0.34884155,117910.0,117900.0,0.14743178]
[1752261811305,0.68090652,117910.0,117900.0,0.14743178]
[1752261812087,0.68090652,117910.0,117900.0,0.14713178]
[1752261812291,0.68095615,117910.0,117900.0,0.14713178]
[1752261813705,0.34889118,117910.0,117900.0,0.14713178]
[1752261813907,0.33226705,117910.0,117900.0,0.14713178]
[1752261814066,0.3483664,117910.0,117900.0,0.14713178]
[1752261814264,0.33226705,117910.0,117900.0,0.14713178]
[1752261814867,0.33226705,117910.0,117900.0,0.14683178]
[1752261816510,0.00020208,117910.0,117900.0,0.14683178]
[1752261816737,0.33226705,117910.0,117900.0,0.14683178]
[1752261816891,0.34849317,117910.0,117900.0,0.14683178]
[1752261817100,0.33226705,117910.0,117900.0,0.14683178]
[1752261817412,0.66631202,117910.0,117900.0,0.0303]
[1752261817580,0.68215287,117910.0,117900.0,0.1854]
[1752261818882,0.46073562,117910.0,117900.0,0.1854]
[1752261821609,0.47708208,117910.0,117900.0,0.1854]
[1752261823631,0.47708208,117910.0,117890.0,0.0151]
[1752261823831,0.44271269,117900.0,117890.0,0.0304]
[1752261823992,0.44470269,117900.0,117890.0,0.0304]
[1752261824846,0.44470269,117900.0,117890.0,0.21676]
[1752261825054,0.44470269,117900.0,117890.0,0.2197]
[1752261826200,0.44470269,117900.0,117890.0,0.2187]
[1752261826600,0.44470269,117900.0,117890.0,0.22183]
[1752261826816,0.44271269,117900.0,117890.0,0.22183]
[1752261827031,0.01639609,117910.0,117900.0,0.0322]
[1752261827229,0.45910878,117910.0,117900.0,0.03742]
[1752261827848,0.46108878,117910.0,117900.0,0.03732]
[1752261833233,0.01837609,117910.0,117900.0,0.03732]
[1752261833444,0.46108878,117910.0,117900.0,0.03732]
[1752261836194,0.46108878,117910.0,117900.0,0.03532]
[1752261838258,0.46108878,117910.0,117900.0,0.0321]
[1752261839419,0.46108878,117910.0,117900.0,0.03532]
[1752261841013,0.68236487,117910.0,117900.0,0.03532]
[1752261845859,0.68236487,117910.0,117900.0,0.03527]
[1752261847410,0.33204402,117910.0,117900.0,0.03727]
[1752261848642,0.34797803,117910.0,117900.0,0.03727]
[1752261849202,0.33204402,117910.0,117900.0,0.03727]
[1752261851633,4.963e-05,117910.0,117900.0,0.03727]
[1752261851840,0.33204402,117910.0,117900.0,0.03727]
[1752261852540,0.36173807,117910.0,117900.0,0.03727]
[1752261852974,0.33204402,117910.0,117900.0,0.03727]
[1752261853451,4.963e-05,117910.0,117900.0,0.12269993]
[1752261854073,0.33204402,117910.0,117900.0,0.12269993]
[1752261854268,4.963e-05,117910.0,117900.0,0.12269993]
[1752261854907,0.33204402,117910.0,117900.0,0.12269993]
[1752261860493,4.963e-05,117910.0,117900.0,0.12269993]
[1752261860647,0.33199439,117910.0,117900.0,0.12254993]
[1752261862161,0.36094077,117920.0,117910.0,0.0319]
[1752261862366,0.69293516,117920.0,117910.0,0.21887]
[1752261862568,1.03293516,117920.0,117910.0,0.22203]
[1752261862775,1.03491516,117920.0,117910.0,0.22203]
[1752261863149,0.36894638,117920.0,117910.0,0.22203]
[1752261863310,0.34,117920.0,117910.0,0.63945432]
[1752261863522,0.06947991,117930.0,117920.0,0.0319]
[1752261863721,0.41150953,117930.0,117920.0,0.0319]
[1752261863921,0.41150953,117930.0,117920.0,0.03506]
[1752261864126,0.41150953,117930.0,117920.0,0.0319]
[1752261864425,0.41150953,117930.0,117910.0,0.21766]
[1752261864426,0.44245038,117930.0,117910.0,0.21766]
[1752261864639,0.66398878,117920.0,117910.0,0.21766]
[1752261864894,0.69476316,117920.0,117910.0,0.22082]
[1752261869411,0.70930401,117920.0,117910.0,0.22283]
[1752261870565,0.70930401,117920.0,117910.0,0.0270934]
[1752261871106,0.04531523,117920.0,117910.0,0.0270934]
[1752261871322,0.70930401,117920.0,117910.0,0.0270934]
[1752261871737,0.70930401,117920.0,117910.0,0.2119334]
[1752261872136,0.70930401,117920.0,117910.0,0.2150934]
[1752261872341,0.04531523,117920.0,117910.0,0.2150934]
[1752261872558,0.70930401,117920.0,117910.0,0.2150934]
[1752261872941,0.69476316,117920.0,117910.0,0.2150934]
[1752261873176,0.69476316,117920.0,117910.0,0.2119334]
[1752261874051,0.69476316,117920.0,117910.0,0.2150934]
[1752261874820,2.39478157,117920.0,117910.0,0.1848]
[1752261875003,2.8895115,117920.0,117910.0,0.1848]
[1752261875212,0.86876516,117920.0,117910.0,0.1848]
[1752261875415,0.33199439,117920.0,117910.0,0.22067]
[1752261875576,1.00398878,117920.0,117910.0,0.22067]
[1752261876978,0.78249907,117920.0,117910.0,0.22067]
[1752261877979,0.06952953,117930.0,117910.0,0.81704527]
[1752261878180,0.06952953,117930.0,117920.0,0.03376]
[1752261878389,0.06952953,117930.0,117920.0,0.56581908]
[1752261878589,0.06952953,117930.0,117920.0,0.563699]
[1752261878964,0.06952953,117930.0,117920.0,1.00619807]
[1752261879230,0.06952953,117930.0,117920.0,1.42580458]
[1752261879231,0.04722866,117930.0,117920.0,1.42580458]
[1752261879433,0.0002,117960.0,117950.0,0.2715]
[1752261879619,0.0002,117960.0,117950.0,1.47334]
[1752261879816,0.00262659,117970.0,117950.0,0.77134538]
[1752261880070,0.00262659,117970.0,117960.0,0.24920993]
[1752261880284,0.002,117990.0,117970.0,0.25]
[1752261880483,0.44249907,117980.0,117970.0,0.02466]
[1752261880658,0.44249907,117980.0,117970.0,0.29897911]
[1752261880896,0.44249907,117980.0,117970.0,0.29685993]
[1752261881097,0.00204959,117990.0,117980.0,0.0318]
[1752261881310,0.44454866,117990.0,117980.0,0.12451893]
[1752261882373,0.44454866,117990.0,117980.0,0.12239993]
[1752261882763,0.44454866,117990.0,117980.0,0.12451893]
[1752261882983,0.00204959,117990.0,117980.0,0.12451893]
[1752261883550,0.44269907,118000.0,117980.0,0.09271893]
[1752261883810,0.44269907,118000.0,117990.0,0.30466993]
[1752261884020,0.44269907,118000.0,117990.0,0.30667993]
[1752261884229,0.0002,118000.0,117990.0,0.30667993]
[1752261884649,0.44269907,118000.0,117990.0,0.30667993]
[1752261885467,0.0002,118000.0,117990.0,0.30667993]
[1752261885849,0.44269907,118000.0,117990.0,0.30667993]
[1752261886887,0.0002,118000.0,117990.0,0.30667993]
[1752261887095,0.43171268,118000.0,117990.0,0.30667993]
[1752261888163,0.0002,118000.0,117990.0,0.30667993]
[1752261889808,0.002,118010.0,118000.0,0.0315]
[1752261889967,0.43356226,118010.0,118000.0,0.10348993]
[1752261890174,0.0002,118020.0,118000.0,0.12216993]
[1752261890386,0.0002,118020.0,118010.0,0.28896993]
[1752261890595,0.43385268,118020.0,118010.0,0.27214993]
[1752261891215,0.43385268,118020.0,118010.0,0.26998993]
[1752261891417,0.43708268,118020.0,118010.0,0.18456]
[1752261894517,0.3728,118010.0,117980.0,0.002]
[1752261894724,0.43365268,117990.0,117980.0,0.00204958]
[1752261894973,0.43365268,117990.0,117980.0,0.09428958]
[1752261895160,0.46645268,117990.0,117980.0,0.09428958]
[1752261895367,0.46968268,117990.0,117980.0,0.09428958]
[1752261895743,0.46968268,117990.0,117980.0,0.09628958]
[1752261896174,0.46968268,117990.0,117980.0,0.09428958]
[1752261899297,0.45308268,117990.0,117980.0,0.09428958]
[1752261900713,0.80948268,117990.0,117980.0,0.00204958]
[1752261900922,0.80948268,117990.0,117960.0,0.002]
[1752261900923,0.04604085,117970.0,117960.0,0.002]
[1752261901132,0.90512346,117970.0,117960.0,0.00204959]
[1752261901338,1.30835346,117970.0,117960.0,0.00204959]
[1752261901540,1.20838268,117970.0,117960.0,0.00204959]
[1752261901766,1.23380368,117970.0,117960.0,0.09428959]
[1752261901995,1.23380368,117970.0,117960.0,0.00204959]
[1752261902207,0.45907368,117970.0,117960.0,0.09424959]
[1752261902407,0.04704085,117990.0,117960.0,0.18491952]
[1752261902408,0.37473,117990.0,117960.0,0.18491952]
[1752261902613,1.23666536,117970.0,117960.0,0.00204959]
[1752261902822,1.23766536,117970.0,117960.0,0.00204959]
[1752261903023,0.47784078,117970.0,117960.0,0.00204959]
[1752261903173,0.90935346,117970.0,117960.0,0.00204959]
[1752261903376,0.90835346,117970.0,117960.0,0.00204959]